[Event "Schack-SM 2024: Mastarklassen"]
[Site "Fortnox Arena, Hejaregatan 5, Vaxjo, Sweden"]
[Date "2024.07.01"]
[Round "3.4"]
[White "Sundin, Emanuel"]
[Black "Mashhadi, Peyman"]
[Result "1/2-1/2"]
[TimeControl "90 minutes for 40 moves + 30 minutes for the rest of the game + 30 seconds per move from move one."]
[WhiteElo "2165"]
[BlackElo "2116"]

1. e4 {[%clk 01:30:52]} {[%emt 00:00:01]} e6 {[%clk 01:30:40]} {[%emt
00:00:20]} 2. d4 {[%clk 01:31:04]} {[%emt 00:00:19]} d5 {[%clk 01:30:57]}
{[%emt 00:00:12]} 3. e5 {[%clk 01:31:10]} {[%emt 00:00:24]} c5 {[%clk
01:31:17]} {[%emt 00:00:12]} 4. c3 {[%clk 01:31:34]} {[%emt 00:00:06]} Nc6
{[%clk 01:31:33]} {[%emt 00:00:12]} 5. Nf3 {[%clk 01:31:47]} {[%emt 00:00:15]}
Qb6 {[%clk 01:31:26]} {[%emt 00:00:41]} 6. Bd3 {[%clk 01:31:45]} {[%emt
00:00:30]} cxd4 {[%clk 01:30:29]} {[%emt 00:01:27]} 7. O-O {[%clk 01:31:56]}
{[%emt 00:00:19]} Bd7 {[%clk 01:25:27]} {[%emt 00:05:32]} 8. Re1 {[%clk
01:31:37]} {[%emt 00:00:49]} Nge7 {[%clk 01:21:36]} {[%emt 00:04:22]} 9. h4
{[%clk 01:30:31]} {[%emt 00:01:35]} h6 {[%clk 01:16:18]} {[%emt 00:05:48]} 10.
h5 {[%clk 01:28:48]} {[%emt 00:02:12]} dxc3 {[%clk 01:06:41]} {[%emt 00:10:07]}
11. Nxc3 {[%clk 01:27:57]} {[%emt 00:01:22]} Nb4 {[%clk 01:01:53]} {[%emt
00:05:18]} 12. Bf1 {[%clk 01:19:55]} {[%emt 00:08:32]} Nc8 {[%clk 00:54:16]}
{[%emt 00:08:07]} 13. a3 {[%clk 01:16:33]} {[%emt 00:03:51]} Nc6 {[%clk
00:52:20]} {[%emt 00:02:28]} 14. Be3 {[%clk 01:14:15]} {[%emt 00:02:46]} Qd8
{[%clk 00:51:50]} {[%emt 00:01:01]} 15. Rc1 {[%clk 01:13:16]} {[%emt 00:01:28]}
Be7 {[%clk 00:50:17]} {[%emt 00:02:02]} 16. Bd3 {[%clk 01:11:28]} {[%emt
00:02:19]} Nb6 {[%clk 00:44:13]} {[%emt 00:06:35]} 17. Ne2 {[%clk 00:59:13]}
{[%emt 00:12:45]} Na5 {[%clk 00:41:13]} {[%emt 00:03:31]} 18. Bd4 {[%clk
00:37:07]} {[%emt 00:22:36]} Nac4 {[%clk 00:37:32]} {[%emt 00:04:09]} 19. Nf4
{[%clk 00:35:15]} {[%emt 00:02:23]} Bc6 {[%clk 00:32:56]} {[%emt 00:05:06]} 20.
Bg6 {[%clk 00:26:42]} {[%emt 00:09:02]} Qd7 {[%clk 00:21:50]} {[%emt 00:11:38]}
21. Bxf7+ {[%clk 00:20:40]} {[%emt 00:06:31]} Kxf7 {[%clk 00:22:07]} {[%emt
00:00:12]} 22. Qd3 {[%clk 00:21:02]} {[%emt 00:00:08]} Bf8 {[%clk 00:19:12]}
{[%emt 00:03:26]} 23. Qg6+ {[%clk 00:21:16]} {[%emt 00:00:16]} Kg8 {[%clk
00:18:48]} {[%emt 00:00:54]} 24. Nxe6 {[%clk 00:20:40]} {[%emt 00:01:06]} Qf7
{[%clk 00:17:18]} {[%emt 00:02:00]} 25. Nh4 {[%clk 00:17:04]} {[%emt 00:04:06]}
Be8 {[%clk 00:10:01]} {[%emt 00:07:47]} 26. Nxf8 {[%clk 00:13:59]} {[%emt
00:03:36]} Kxf8 {[%clk 00:09:11]} {[%emt 00:01:20]} 27. Qg3 {[%clk 00:12:15]}
{[%emt 00:02:13]} Qxh5 {[%clk 00:07:34]} {[%emt 00:02:08]} 28. b3 {[%clk
00:09:55]} {[%emt 00:02:50]} Nd2 {[%clk 00:06:12]} {[%emt 00:01:52]} 29. Qf4+
{[%clk 00:03:03]} {[%emt 00:07:22]} Kg8 {[%clk 00:06:31]} {[%emt 00:00:10]} 30.
Nf5 {[%clk 00:01:10]} {[%emt 00:02:24]} Qg5 {[%clk 00:05:33]} {[%emt 00:01:29]}
31. Qxg5 {[%clk 00:00:38]} {[%emt 00:01:01]} hxg5 {[%clk 00:05:59]} {[%emt
00:00:04]} 32. Re3 {[%clk 00:00:32]} {[%emt 00:00:36]} g6 {[%clk 00:01:11]}
{[%emt 00:05:19]} 33. Nd6 {[%clk 00:00:34]} {[%emt 00:00:28]} Rh7 {[%clk
00:01:23]} {[%emt 00:00:17]} 34. f3 {[%clk 00:00:36]} {[%emt 00:00:28]} g4
{[%clk 00:00:45]} {[%emt 00:01:09]} 35. Rd1 {[%clk 00:00:42]} {[%emt 00:00:23]}
gxf3 {[%clk 00:00:41]} {[%emt 00:00:34]} 36. Rxd2 {[%clk 00:00:56]} {[%emt
00:00:16]} fxg2 {[%clk 00:00:56]} {[%emt 00:00:15]} 37. Rxg2 {[%clk 00:01:25]}
Rh4 {[%clk 00:00:50]} {[%emt 00:00:36]} 38. Bxb6 {[%clk 00:01:23]} {[%emt
00:00:33]} axb6 {[%clk 00:01:14]} {[%emt 00:00:06]} 39. Nxe8 {[%clk 00:01:22]}
{[%emt 00:00:31]} Rxe8 {[%clk 00:01:37]} {[%emt 00:00:08]} 40. Rxg6+ {[%clk
00:01:43]} {[%emt 00:00:08]} Kf7 {[%clk 00:00:39]} {[%emt 00:01:28]} 41. Rf6+
{[%clk 00:26:36]} {[%emt 00:05:38]} Ke7 {[%clk 00:24:37]} {[%emt 00:06:32]} 42.
Rxb6 {[%clk 00:24:55]} {[%emt 00:02:10]} Rb8 {[%clk 00:20:57]} {[%emt
00:04:10]} 43. Rg3 {[%clk 00:15:03]} {[%emt 00:10:21]} Re4 {[%clk 00:17:58]}
{[%emt 00:03:29]} 44. Rg7+ {[%clk 00:11:51]} {[%emt 00:03:42]} Kf8 {[%clk
00:18:17]} {[%emt 00:00:12]} 45. Rh7 {[%clk 00:11:22]} {[%emt 00:00:59]} Kg8
{[%clk 00:18:31]} {[%emt 00:00:16]} 46. Rhxb7 {[%clk 00:11:39]} {[%emt
00:00:14]} Rxb7 {[%clk 00:18:48]} {[%emt 00:00:13]} 47. Rxb7 {[%clk 00:12:08]}
{[%emt 00:00:01]} Rxe5 {[%clk 00:17:51]} {[%emt 00:01:25]} 48. Kf2 {[%clk
00:05:35]} {[%emt 00:07:04]} Kf8 {[%clk 00:16:27]} {[%emt 00:01:53]} 49. Kf3
{[%clk 00:04:49]} {[%emt 00:01:16]} Ke8 {[%clk 00:16:19]} {[%emt 00:00:38]} 50.
Kf4 {[%clk 00:05:14]} {[%emt 00:00:04]} Re4+ {[%clk 00:16:12]} {[%emt
00:00:38]} 51. Kf5 {[%clk 00:05:32]} {[%emt 00:00:12]} Re3 {[%clk 00:15:29]}
{[%emt 00:01:13]} 52. a4 {[%clk 00:04:33]} {[%emt 00:01:29]} Kd8 {[%clk
00:07:45]} {[%emt 00:08:14]} 53. a5 {[%clk 00:03:46]} {[%emt 00:01:17]} Kc8
{[%clk 00:07:41]} {[%emt 00:00:34]} 54. Rb5 {[%clk 00:01:49]} {[%emt 00:02:27]}
d4 {[%clk 00:06:43]} {[%emt 00:01:28]} 55. a6 {[%clk 00:01:28]} {[%emt
00:00:51]} Re7 {[%clk 00:06:46]} {[%emt 00:00:27]} 56. Rc5+ {[%clk 00:00:53]}
{[%emt 00:01:05]} Kb8 {[%clk 00:05:43]} {[%emt 00:01:34]} 57. b4 {[%clk
00:00:52]} {[%emt 00:00:30]} Ka7 {[%clk 00:03:09]} {[%emt 00:03:05]} 58. b5
{[%clk 00:01:05]} {[%emt 00:00:16]} Kb6 {[%clk 00:03:05]} {[%emt 00:00:33]} 59.
Rd5 {[%clk 00:01:05]} {[%emt 00:00:32]} d3 {[%clk 00:02:40]} {[%emt 00:00:55]}
60. Kf6 {[%clk 00:00:46]} {[%emt 00:00:49]} Rh7 {[%clk 00:01:57]} {[%emt
00:01:13]} 61. Rxd3 {[%clk 00:00:36]} {[%emt 00:00:40]} Kxb5 {[%clk 00:02:12]}
{[%emt 00:00:16]} 62. Ra3 {[%clk 00:00:57]} {[%emt 00:00:07]} Rh6+ {[%clk
00:02:34]} {[%emt 00:00:09]} 63. Ke7 {[%clk 00:01:22]} {[%emt 00:00:05]} Rxa6
{[%clk 00:03:00]} {[%emt 00:00:04]} 64. Rxa6 {[%clk 00:01:49]} {[%emt
00:00:03]} Kxa6 {[%clk 00:03:27]} {[%emt 00:00:03]} 1/2-1/2

[Event "Schack-SM 2024: Mastarklassen"]
[Site "Fortnox Arena, Hejaregatan 5, Vaxjo, Sweden"]
[Date "2024.07.01"]
[Round "3.5"]
[White "Ostensson, Julia"]
[Black "Nygren, David"]
[Result "0-1"]
[TimeControl "90 minutes for 40 moves + 30 minutes for the rest of the game + 30 seconds per move from move one."]
[WhiteElo "2004"]
[BlackElo "2132"]

1. e4 {[%clk 01:30:57]} {[%emt 00:07:09]} e6 {[%clk 01:30:43]} {[%emt
00:00:15]} 2. d4 {[%clk 01:31:22]} {[%emt 00:00:06]} d5 {[%clk 01:31:10]}
{[%emt 00:00:03]} 3. Nc3 {[%clk 01:31:49]} {[%emt 00:00:04]} Bb4 {[%clk
01:31:28]} {[%emt 00:00:13]} 4. exd5 {[%clk 01:32:14]} {[%emt 00:00:05]} exd5
{[%clk 01:27:51]} {[%emt 00:04:07]} 5. Bd3 {[%clk 01:31:06]} {[%emt 00:01:38]}
Nf6 {[%clk 01:27:00]} {[%emt 00:01:20]} 6. Nge2 {[%clk 01:31:30]} {[%emt
00:00:07]} c5 {[%clk 01:25:14]} {[%emt 00:02:15]} 7. dxc5 {[%clk 01:29:58]}
{[%emt 00:02:02]} Bxc5 {[%clk 01:24:44]} {[%emt 00:01:02]} 8. O-O {[%clk
01:29:53]} {[%emt 00:00:33]} Be6 {[%clk 01:19:49]} {[%emt 00:05:26]} 9. Ng3
{[%clk 01:18:43]} {[%emt 00:11:41]} Nc6 {[%clk 01:12:54]} {[%emt 00:07:25]} 10.
Nce2 {[%clk 01:09:47]} {[%emt 00:09:26]} Qd7 {[%clk 01:09:56]} {[%emt
00:03:27]} 11. c3 {[%clk 01:06:27]} {[%emt 00:03:50]} h5 {[%clk 01:04:57]}
{[%emt 00:05:30]} 12. b4 {[%clk 00:46:08]} {[%emt 00:20:50]} Bb6 {[%clk
01:02:29]} {[%emt 00:02:57]} 13. Nf4 {[%clk 00:44:04]} {[%emt 00:02:34]} h4
{[%clk 00:56:59]} {[%emt 00:05:59]} 14. Nxe6 {[%clk 00:26:24]} {[%emt
00:18:11]} hxg3 {[%clk 00:51:20]} {[%emt 00:06:08]} 15. Nxg7+ {[%clk 00:26:48]}
{[%emt 00:00:08]} Kf8 {[%clk 00:49:58]} {[%emt 00:01:50]} 16. Nf5 {[%clk
00:27:04]} {[%emt 00:00:15]} Bxf2+ {[%clk 00:46:17]} {[%emt 00:04:11]} 17. Rxf2
{[%clk 00:27:14]} {[%emt 00:00:20]} gxf2+ {[%clk 00:46:10]} {[%emt 00:00:39]}
18. Kxf2 {[%clk 00:26:21]} {[%emt 00:01:22]} Ne5 {[%clk 00:44:17]} {[%emt
00:02:23]} 19. Bh6+ {[%clk 00:17:32]} {[%emt 00:09:18]} Kg8 {[%clk 00:37:45]}
{[%emt 00:07:03]} 20. h3 {[%clk 00:14:52]} {[%emt 00:03:10]} Nxd3+ {[%clk
00:37:05]} {[%emt 00:01:10]} 21. Qxd3 {[%clk 00:14:57]} {[%emt 00:00:25]} Ne4+
{[%clk 00:37:27]} {[%emt 00:00:08]} 22. Kg1 {[%clk 00:15:16]} {[%emt 00:00:10]}
Qxf5 {[%clk 00:37:07]} {[%emt 00:00:50]} 23. Rf1 {[%clk 00:15:36]} {[%emt
00:00:11]} Qe6 {[%clk 00:35:18]} {[%emt 00:02:19]} 24. Be3 {[%clk 00:15:30]}
{[%emt 00:00:35]} Rh5 {[%clk 00:32:53]} {[%emt 00:02:54]} 25. Rf4 {[%clk
00:14:33]} {[%emt 00:01:28]} Kh7 {[%clk 00:31:18]} {[%emt 00:02:03]} 26. c4
{[%clk 00:14:09]} {[%emt 00:00:57]} Re8 {[%clk 00:30:06]} {[%emt 00:01:41]} 27.
cxd5 {[%clk 00:12:46]} {[%emt 00:01:54]} Qxd5 {[%clk 00:29:00]} {[%emt
00:01:36]} 28. Qxd5 {[%clk 00:12:27]} {[%emt 00:00:48]} Rxd5 {[%clk 00:29:26]}
{[%emt 00:00:06]} 29. Rxf7+ {[%clk 00:12:51]} {[%emt 00:00:06]} Kg6 {[%clk
00:29:28]} {[%emt 00:00:26]} 30. Rxb7 {[%clk 00:13:15]} {[%emt 00:00:07]} Nd6
{[%clk 00:29:45]} {[%emt 00:00:13]} 0-1

[Event "Schack-SM 2024: Mastarklassen"]
[Site "Fortnox Arena, Hejaregatan 5, Vaxjo, Sweden"]
[Date "2024.06.30"]
[Round "2.4"]
[White "Lindborg, Patrik"]
[Black "Ljung, Harald"]
[Result "0-1"]
[TimeControl "90 minutes for 40 moves + 30 minutes for the rest of the game + 30 seconds per move from move one."]
[WhiteElo "2162"]
[BlackElo "2101"]

1. d4 {[%clk 01:30:56]} {[%emt 00:00:04]} d5 {[%clk 01:30:47]} {[%emt
00:00:14]} 2. Nf3 {[%clk 01:31:04]} {[%emt 00:00:21]} Nf6 {[%clk 01:31:09]}
{[%emt 00:00:08]} 3. c4 {[%clk 01:31:28]} {[%emt 00:00:06]} e6 {[%clk
01:31:36]} {[%emt 00:00:05]} 4. Nc3 {[%clk 01:31:42]} {[%emt 00:00:15]} Nbd7
{[%clk 01:28:21]} {[%emt 00:03:45]} 5. cxd5 {[%clk 01:23:44]} {[%emt 00:08:29]}
exd5 {[%clk 01:28:27]} {[%emt 00:00:24]} 6. Bf4 {[%clk 01:23:56]} {[%emt
00:00:18]} c6 {[%clk 01:28:07]} {[%emt 00:00:50]} 7. h3 {[%clk 01:22:51]}
{[%emt 00:01:35]} Be7 {[%clk 01:27:51]} {[%emt 00:00:46]} 8. e3 {[%clk
01:22:51]} {[%emt 00:00:30]} Nf8 {[%clk 01:27:10]} {[%emt 00:01:11]} 9. Bd3
{[%clk 01:19:01]} {[%emt 00:04:20]} Ne6 {[%clk 01:26:25]} {[%emt 00:01:16]} 10.
Be5 {[%clk 01:16:43]} {[%emt 00:02:49]} O-O {[%clk 01:26:00]} {[%emt 00:00:54]}
11. Qc2 {[%clk 01:12:36]} {[%emt 00:04:37]} g6 {[%clk 01:25:46]} {[%emt
00:00:45]} 12. O-O {[%clk 01:10:01]} {[%emt 00:03:04]} Ng7 {[%clk 01:23:50]}
{[%emt 00:02:26]} 13. Rab1 {[%clk 00:58:57]} {[%emt 00:11:34]} Bf5 {[%clk
01:21:39]} {[%emt 00:02:41]} 14. b4 {[%clk 00:53:24]} {[%emt 00:06:04]} a6
{[%clk 01:14:36]} {[%emt 00:07:33]} 15. Nd2 {[%clk 00:44:39]} {[%emt 00:09:14]}
Nd7 {[%clk 01:12:44]} {[%emt 00:02:23]} 16. Bh2 {[%clk 00:40:13]} {[%emt
00:04:56]} b5 {[%clk 01:03:25]} {[%emt 00:09:49]} 17. Nf3 {[%clk 00:27:33]}
{[%emt 00:13:09]} Nb6 {[%clk 01:01:38]} {[%emt 00:02:19]} 18. Ne5 {[%clk
00:26:25]} {[%emt 00:01:36]} Rc8 {[%clk 01:00:41]} {[%emt 00:01:27]} 19. g4
{[%clk 00:24:06]} {[%emt 00:02:49]} Bxd3 {[%clk 01:00:13]} {[%emt 00:00:59]} 20.
Qxd3 {[%clk 00:22:54]} {[%emt 00:01:41]} Bd6 {[%clk 00:51:15]} {[%emt
00:09:28]} 21. e4 {[%clk 00:19:35]} {[%emt 00:03:49]} Ne6 {[%clk 00:46:53]}
{[%emt 00:04:51]} 22. exd5 {[%clk 00:11:26]} {[%emt 00:08:40]} cxd5 {[%clk
00:46:58]} {[%emt 00:00:25]} 23. Ne2 {[%clk 00:11:24]} {[%emt 00:00:32]} f6
{[%clk 00:42:45]} {[%emt 00:04:45]} 24. Nf3 {[%clk 00:05:54]} {[%emt 00:05:59]}
Nc4 {[%clk 00:43:06]} {[%emt 00:00:09]} 25. Bg3 {[%clk 00:03:45]} {[%emt
00:02:38]} Qc7 {[%clk 00:40:41]} {[%emt 00:02:53]} 26. Kg2 {[%clk 00:03:33]}
{[%emt 00:00:44]} Rce8 {[%clk 00:40:09]} {[%emt 00:01:02]} 27. Nc3 {[%clk
00:03:05]} {[%emt 00:00:59]} Bxg3 {[%clk 00:38:33]} {[%emt 00:02:06]} 28. fxg3
{[%clk 00:03:30]} {[%emt 00:00:04]} Qd6 {[%clk 00:38:21]} {[%emt 00:00:42]} 29.
Rfe1 {[%clk 00:02:49]} {[%emt 00:01:13]} f5 {[%clk 00:29:58]} {[%emt 00:08:53]}
30. g5 {[%clk 00:02:51]} {[%emt 00:00:28]} f4 {[%clk 00:29:51]} {[%emt
00:00:37]} 31. g4 {[%clk 00:02:52]} {[%emt 00:00:29]} Ne3+ {[%clk 00:29:30]}
{[%emt 00:00:50]} 32. Kh1 {[%clk 00:02:53]} {[%emt 00:00:31]} Rc8 {[%clk
00:27:33]} {[%emt 00:02:25]} 33. Nd1 {[%clk 00:02:13]} {[%emt 00:01:11]} Nc4
{[%clk 00:22:18]} {[%emt 00:05:45]} 34. h4 {[%clk 00:01:56]} {[%emt 00:00:47]}
Rce8 {[%clk 00:21:53]} {[%emt 00:00:55]} 35. h5 {[%clk 00:00:47]} {[%emt
00:01:39]} gxh5 {[%clk 00:21:35]} {[%emt 00:00:48]} 36. gxh5 {[%clk 00:00:53]}
{[%emt 00:00:24]} Ng7 {[%clk 00:21:35]} {[%emt 00:00:29]} 37. Nf2 {[%clk
00:00:42]} {[%emt 00:00:44]} Re3 {[%clk 00:21:33]} {[%emt 00:00:31]} 38. Qd1
{[%clk 00:00:38]} {[%emt 00:00:33]} Nxh5 {[%clk 00:21:11]} {[%emt 00:00:52]} 39.
Ng4 {[%clk 00:01:03]} {[%emt 00:00:05]} Ng3+ {[%clk 00:20:33]} {[%emt
00:01:08]} 40. Kg2 {[%clk 00:01:32]} {[%emt 00:00:02]} Nf5 {[%clk 00:16:02]}
{[%emt 00:05:00]} 41. Nfe5 {[%clk 00:30:03]} {[%emt 00:02:00]} Rg3+ {[%clk
00:43:25]} {[%emt 00:03:06]} 42. Kh2 {[%clk 00:25:47]} {[%emt 00:04:46]} Nce3
{[%clk 00:42:58]} {[%emt 00:00:58]} 43. Nxe3 {[%clk 00:25:43]} {[%emt
00:00:34]} Nxe3 {[%clk 00:40:56]} {[%emt 00:02:31]} 44. Qh5 {[%clk 00:24:54]}
{[%emt 00:01:18]} Nc2 {[%clk 00:33:21]} {[%emt 00:08:06]} 45. Rg1 {[%clk
00:20:55]} {[%emt 00:04:30]} Nxd4 {[%clk 00:25:29]} {[%emt 00:08:22]} 46. g6
{[%clk 00:13:48]} {[%emt 00:07:38]} hxg6 {[%clk 00:25:30]} {[%emt 00:00:26]} 47.
Nxg6 {[%clk 00:13:49]} {[%emt 00:00:31]} Nf3+ {[%clk 00:24:59]} {[%emt
00:01:01]} 48. Kh1 {[%clk 00:14:14]} {[%emt 00:00:04]} Nxg1 {[%clk 00:24:16]}
{[%emt 00:01:13]} 49. Qh8+ {[%clk 00:10:12]} {[%emt 00:04:31]} Kf7 {[%clk
00:24:41]} {[%emt 00:00:05]} 50. Ne5+ {[%clk 00:10:21]} {[%emt 00:00:22]} Ke6
{[%clk 00:23:45]} {[%emt 00:01:26]} 0-1

[Event "Schack-SM 2024: Mastarklassen"]
[Site "Fortnox Arena, Hejaregatan 5, Vaxjo, Sweden"]
[Date "2024.06.30"]
[Round "2.5"]
[White "Liden, Tommy"]
[Black "Persson, Sebastian 2007"]
[Result "1-0"]
[TimeControl "90 minutes for 40 moves + 30 minutes for the rest of the game + 30 seconds per move from move one."]
[WhiteElo "2123"]
[BlackElo "2063"]

1. e4 {[%clk 01:30:59]} d6 {[%clk 01:30:50]} {[%emt 00:00:09]} 2. d4 {[%clk
01:31:03]} {[%emt 00:00:26]} Nf6 {[%clk 01:31:10]} {[%emt 00:00:09]} 3. Nc3
{[%clk 01:31:05]} {[%emt 00:00:28]} g6 {[%clk 01:31:30]} {[%emt 00:00:10]} 4.
Nf3 {[%clk 01:30:35]} {[%emt 00:01:00]} Bg4 {[%clk 01:30:19]} {[%emt 00:01:42]}
5. h3 {[%clk 01:29:52]} {[%emt 00:01:12]} Bxf3 {[%clk 01:30:36]} {[%emt
00:00:14]} 6. Qxf3 {[%clk 01:30:06]} {[%emt 00:00:16]} Nbd7 {[%clk 01:27:24]}
{[%emt 00:03:41]} 7. Bc4 {[%clk 01:26:52]} {[%emt 00:03:45]} Bg7 {[%clk
01:27:38]} {[%emt 00:00:15]} 8. O-O {[%clk 01:26:04]} {[%emt 00:01:20]} O-O
{[%clk 01:27:58]} {[%emt 00:00:09]} 9. Re1 {[%clk 01:23:27]} {[%emt 00:03:06]}
e5 {[%clk 01:27:21]} {[%emt 00:01:07]} 10. Be3 {[%clk 01:22:28]} {[%emt
00:01:30]} c6 {[%clk 01:27:10]} {[%emt 00:00:41]} 11. a4 {[%clk 01:21:12]}
{[%emt 00:01:47]} a5 {[%clk 01:26:06]} {[%emt 00:01:35]} 12. Rad1 {[%clk
01:20:17]} {[%emt 00:01:23]} Qe7 {[%clk 01:23:41]} {[%emt 00:02:55]} 13. Ba2
{[%clk 01:16:54]} {[%emt 00:03:53]} Rfd8 {[%clk 01:19:06]} {[%emt 00:05:05]} 14.
dxe5 {[%clk 01:12:45]} {[%emt 00:04:40]} dxe5 {[%clk 01:19:19]} {[%emt
00:00:16]} 15. Qe2 {[%clk 01:10:58]} {[%emt 00:02:18]} Nc5 {[%clk 01:12:42]}
{[%emt 00:07:06]} 16. Qc4 {[%clk 01:09:48]} {[%emt 00:01:41]} Ne6 {[%clk
01:12:38]} {[%emt 00:00:34]} 17. Rxd8+ {[%clk 01:03:46]} {[%emt 00:06:32]} Qxd8
{[%clk 01:12:23]} {[%emt 00:00:46]} 18. Qb3 {[%clk 01:01:36]} {[%emt 00:02:37]}
Qe7 {[%clk 01:08:56]} {[%emt 00:03:59]} 19. f3 {[%clk 00:59:07]} {[%emt
00:02:59]} Nh5 {[%clk 01:05:31]} {[%emt 00:03:56]} 20. Ne2 {[%clk 00:58:27]}
{[%emt 00:01:10]} Bf6 {[%clk 00:48:33]} {[%emt 00:17:27]} 21. g3 {[%clk
00:51:39]} {[%emt 00:07:20]} Qd7 {[%clk 00:42:50]} {[%emt 00:06:12]} 22. Kg2
{[%clk 00:37:02]} {[%emt 00:15:07]} Be7 {[%clk 00:35:56]} {[%emt 00:07:24]} 23.
Nc1 {[%clk 00:33:31]} {[%emt 00:04:01]} Bc5 {[%clk 00:33:12]} {[%emt 00:03:15]}
24. Qd3 {[%clk 00:24:01]} {[%emt 00:09:58]} Qe7 {[%clk 00:30:00]} {[%emt
00:03:42]} 25. Bxe6 {[%clk 00:23:01]} {[%emt 00:01:30]} Bxe3 {[%clk 00:30:19]}
{[%emt 00:00:11]} 26. Bxf7+ {[%clk 00:22:44]} {[%emt 00:00:47]} Kxf7 {[%clk
00:30:38]} {[%emt 00:00:11]} 27. Qxe3 {[%clk 00:22:46]} {[%emt 00:00:29]} Rd8
{[%clk 00:28:01]} {[%emt 00:03:06]} 28. Nd3 {[%clk 00:22:34]} {[%emt 00:00:44]}
b5 {[%clk 00:25:36]} {[%emt 00:02:54]} 29. Ra1 {[%clk 00:19:48]} {[%emt
00:03:16]} b4 {[%clk 00:24:42]} {[%emt 00:01:24]} 30. b3 {[%clk 00:19:30]}
{[%emt 00:00:48]} c5 {[%clk 00:17:03]} {[%emt 00:08:09]} 31. Rf1 {[%clk
00:16:42]} {[%emt 00:03:16]} c4 {[%clk 00:17:07]} {[%emt 00:00:27]} 32. bxc4
{[%clk 00:16:46]} {[%emt 00:00:25]} Kg7 {[%clk 00:16:40]} {[%emt 00:00:58]} 33.
Rf2 {[%clk 00:14:47]} {[%emt 00:02:29]} Rb8 {[%clk 00:09:18]} {[%emt 00:07:52]}
34. Qc5 {[%clk 00:09:16]} {[%emt 00:06:01]} Qxc5 {[%clk 00:07:25]} {[%emt
00:02:23]} 35. Nxc5 {[%clk 00:09:44]} {[%emt 00:00:02]} Rc8 {[%clk 00:07:45]}
{[%emt 00:00:09]} 36. Nb3 {[%clk 00:09:26]} {[%emt 00:00:50]} Rxc4 {[%clk
00:07:59]} {[%emt 00:00:15]} 37. Nxa5 {[%clk 00:09:48]} {[%emt 00:00:09]} Rc3
{[%clk 00:08:19]} {[%emt 00:00:09]} 38. Nb3 {[%clk 00:08:26]} {[%emt 00:01:52]}
Kf7 {[%clk 00:08:12]} {[%emt 00:00:37]} 39. a5 {[%clk 00:05:26]} {[%emt
00:03:30]} Ke7 {[%clk 00:07:11]} {[%emt 00:01:31]} 40. Rd2 {[%clk 00:05:07]}
{[%emt 00:00:49]} Nf6 {[%clk 00:06:58]} {[%emt 00:00:43]} 41. Kf2 {[%clk
00:00:56]} {[%emt 00:04:42]} g5 {[%clk 00:06:31]} {[%emt 00:00:56]} 42. Nc1
{[%clk 00:00:32]} {[%emt 00:00:55]} h5 {[%clk 00:30:08]} {[%emt 00:06:52]} 43.
Nd3 {[%clk 00:30:37]} {[%emt 00:00:25]} g4 {[%clk 00:30:11]} {[%emt 00:00:27]}
44. hxg4 {[%clk 00:24:22]} {[%emt 00:06:46]} hxg4 {[%clk 00:30:28]} {[%emt
00:00:12]} 45. a6 {[%clk 00:24:02]} {[%emt 00:00:51]} Ra3 {[%clk 00:27:24]}
{[%emt 00:03:33]} 46. a7 {[%clk 00:22:58]} {[%emt 00:01:35]} Rxa7 {[%clk
00:27:46]} {[%emt 00:00:09]} 47. Nxe5 {[%clk 00:23:10]} {[%emt 00:00:17]} Rc7
{[%clk 00:23:14]} {[%emt 00:05:01]} 48. Nd3 {[%clk 00:18:42]} {[%emt 00:04:58]}
gxf3 {[%clk 00:18:00]} {[%emt 00:05:43]} 49. Kxf3 {[%clk 00:19:08]} {[%emt
00:00:04]} Rc3 {[%clk 00:18:08]} {[%emt 00:00:24]} 50. e5 {[%clk 00:17:37]}
{[%emt 00:02:00]} Nd7 {[%clk 00:17:58]} {[%emt 00:00:42]} 51. Ke4 {[%clk
00:15:24]} {[%emt 00:02:42]} b3 {[%clk 00:17:53]} {[%emt 00:00:34]} 52. cxb3
{[%clk 00:14:50]} {[%emt 00:01:04]} Rxb3 {[%clk 00:18:16]} {[%emt 00:00:07]} 53.
g4 {[%clk 00:14:18]} {[%emt 00:01:02]} Ra3 {[%clk 00:18:12]} {[%emt 00:00:36]}
54. Nf4 {[%clk 00:10:33]} {[%emt 00:04:14]} Ra5 {[%clk 00:14:23]} {[%emt
00:04:20]} 55. Ng6+ {[%clk 00:07:50]} {[%emt 00:03:12]} Kf7 {[%clk 00:13:16]}
{[%emt 00:01:35]} 56. Kf5 {[%clk 00:07:24]} {[%emt 00:00:57]} Nf6 {[%clk
00:11:03]} {[%emt 00:02:43]} 57. g5 {[%clk 00:06:37]} {[%emt 00:01:18]} Nh5
{[%clk 00:09:39]} {[%emt 00:01:52]} 58. Rd7+ {[%clk 00:06:26]} {[%emt
00:00:42]} Kg8 {[%clk 00:09:39]} {[%emt 00:00:31]} 59. Nf4 {[%clk 00:04:00]}
{[%emt 00:02:56]} Ng7+ {[%clk 00:08:40]} {[%emt 00:01:28]} 60. Kf6 {[%clk
00:02:28]} {[%emt 00:02:01]} Ne8+ {[%clk 00:08:04]} {[%emt 00:01:06]} 61. Ke6
{[%clk 00:01:52]} {[%emt 00:01:06]} Ng7+ {[%clk 00:07:23]} {[%emt 00:01:10]} 62.
Kf6 {[%clk 00:01:12]} {[%emt 00:01:11]} Ne8+ {[%clk 00:07:40]} {[%emt
00:00:14]} 63. Kf5 {[%clk 00:01:16]} {[%emt 00:00:26]} Ng7+ {[%clk 00:06:56]}
{[%emt 00:01:14]} 64. Kg6 {[%clk 00:01:42]} {[%emt 00:00:05]} Ra6+ {[%clk
00:07:11]} {[%emt 00:00:14]} 65. Rd6 {[%clk 00:01:58]} {[%emt 00:00:15]} Ra8
{[%clk 00:07:07]} {[%emt 00:00:34]} 66. Ne6 {[%clk 00:01:31]} {[%emt 00:00:56]}
Ne8 {[%clk 00:04:56]} {[%emt 00:02:42]} 67. Rd8 {[%clk 00:01:51]} {[%emt
00:00:10]} Rxd8 {[%clk 00:05:24]} {[%emt 00:00:02]} 68. Nxd8 {[%clk 00:02:12]}
{[%emt 00:00:08]} Kf8 {[%clk 00:05:45]} {[%emt 00:00:08]} 69. Nc6 {[%clk
00:01:30]} {[%emt 00:01:13]} Nc7 {[%clk 00:05:37]} {[%emt 00:00:38]} 70. Kh7
{[%clk 00:01:30]} {[%emt 00:00:30]} Ke8 {[%clk 00:04:56]} {[%emt 00:01:12]} 71.
g6 {[%clk 00:01:47]} {[%emt 00:00:14]} Ne6 {[%clk 00:05:13]} {[%emt 00:00:12]}
72. g7 {[%clk 00:02:00]} {[%emt 00:00:16]} 1-0